[Event "*** Titled Tuesday Blitz"]
[Site "Chess.com"]
[Date "2020.11.10"]
[Round "2"]
[White "KarstenHansch"]
[Black "124chess"]
[Result "1-0"]
[WhiteElo "2531"]
[BlackElo "2730"]
[TimeControl "180+1"]
[EndTime "10:20:34 PST"]
[Termination "KarstenHansch won by resignation"]

1. e4 {[%clk 0:03:00.9]} 1... c6 {[%clk 0:02:59.2]} 2. d4 {[%clk 0:03:00.1]}
2... d5 {[%clk 0:02:59.2]} 3. e5 {[%clk 0:03:00.4]} 3... Bf5 {[%clk 0:02:59.1]}
4. h4 {[%clk 0:03:00.1]} 4... h5 {[%clk 0:02:56.7]} 5. Bd3 {[%clk 0:02:59.8]}
5... Bxd3 {[%clk 0:02:53.2]} 6. Qxd3 {[%clk 0:03:00.7]} 6... e6 {[%clk
0:02:53.8]} 7. Bg5 {[%clk 0:02:59.5]} 7... Be7 {[%clk 0:02:40.4]} 8. Nf3 {[%clk
0:02:55.9]} 8... Qb6 {[%clk 0:02:40.4]} 9. Nbd2 {[%clk 0:02:53]} 9... Qa6 {[%clk
0:02:38.4]} 10. c4 {[%clk 0:02:51.9]} 10... Nd7 {[%clk 0:02:37.4]} 11. O-O
{[%clk 0:02:50.6]} 11... Bb4 {[%clk 0:02:36.8]} 12. b3 {[%clk 0:02:46]} 12...
Nh6 {[%clk 0:02:36.4]} 13. Bxh6 {[%clk 0:02:43.9]} 13... Rxh6 {[%clk 0:02:35.2]}
14. a3 {[%clk 0:02:40.8]} 14... Bxd2 {[%clk 0:02:23.5]} 15. Nxd2 {[%clk
0:02:40.2]} 15... Rd8 {[%clk 0:02:23.7]} 16. Qg3 {[%clk 0:02:29.4]} 16... Rg6
{[%clk 0:02:22.5]} 17. Qe3 {[%clk 0:02:26.4]} 17... Rg4 {[%clk 0:02:18.5]} 18.
c5 {[%clk 0:02:19.1]} 18... Kf8 {[%clk 0:02:15.6]} 19. g3 {[%clk 0:02:17.2]}
19... Kg8 {[%clk 0:02:14.8]} 20. Nf3 {[%clk 0:02:15.3]} 20... Re4 {[%clk
0:02:12.3]} 21. Qg5 {[%clk 0:02:11.4]} 21... Re8 {[%clk 0:01:40.7]} 22. Qxh5
{[%clk 0:02:10.1]} 22... g6 {[%clk 0:01:41.2]} 23. Qh6 {[%clk 0:01:52.4]} 23...
Nf8 {[%clk 0:01:41.3]} 24. Rad1 {[%clk 0:01:45.4]} 24... Qxa3 {[%clk 0:01:33.9]}
25. Ng5 {[%clk 0:01:37.8]} 25... Rg4 {[%clk 0:01:27.7]} 26. Kg2 {[%clk
0:01:14.9]} 26... Qxb3 {[%clk 0:01:25.4]} 27. Rb1 {[%clk 0:01:07.2]} 27... Qd3
{[%clk 0:00:57.9]} 28. Rxb7 {[%clk 0:00:59.6]} 28... Rxg5 {[%clk 0:00:58.1]} 29.
Qxg5 {[%clk 0:00:58.9]} 29... Qxd4 {[%clk 0:00:56]} 30. Rxa7 {[%clk 0:00:34.9]}
30... Qxc5 {[%clk 0:00:53.7]} 31. Rc7 {[%clk 0:00:33.1]} 31... Nh7 {[%clk
0:00:46.6]} 32. Qf4 {[%clk 0:00:29.7]} 32... Re7 {[%clk 0:00:45]} 33. Rc8+
{[%clk 0:00:29.2]} 33... Kg7 {[%clk 0:00:44.8]} 34. Rb1 {[%clk 0:00:28.1]} 34...
Qc2 {[%clk 0:00:19.4]} 35. Rbb8 {[%clk 0:00:26.7]} 35... Qe4+ {[%clk 0:00:19.9]}
36. Qxe4 {[%clk 0:00:26.6]} 36... dxe4 {[%clk 0:00:20.8]} 37. Rxc6 {[%clk
0:00:26.6]} 37... g5 {[%clk 0:00:20.7]} 38. Rb4 {[%clk 0:00:23.6]} 38... gxh4
{[%clk 0:00:20.1]} 39. gxh4 {[%clk 0:00:24.5]} 39... Nf8 {[%clk 0:00:20.2]} 40.
Rxe4 {[%clk 0:00:20.3]} 40... Ra7 {[%clk 0:00:19.7]} 41. Rg4+ {[%clk 0:00:20]}
41... Kh6 {[%clk 0:00:18.5]} 42. Rc8 {[%clk 0:00:19.5]} 42... Ng6 {[%clk
0:00:18.5]} 43. Kg3 {[%clk 0:00:16.7]} 43... Ra3+ {[%clk 0:00:17.9]} 44. f3
{[%clk 0:00:16.6]} 44... Kh7 {[%clk 0:00:18.2]} 45. Rg5 {[%clk 0:00:16.8]} 45...
Ne7 {[%clk 0:00:17.1]} 46. Rf8 {[%clk 0:00:14.8]} 46... Nf5+ {[%clk 0:00:15.3]}
47. Rxf5 {[%clk 0:00:15.3]} 47... exf5 {[%clk 0:00:16.2]} 48. Rxf7+ {[%clk
0:00:16.2]} 48... Kg6 {[%clk 0:00:16.4]} 49. Rf6+ {[%clk 0:00:16.9]} 49... Kg7
{[%clk 0:00:16.8]} 50. Rxf5 {[%clk 0:00:17.5]} 1-0

[Event "*** Titled Tuesday Blitz"]
[Site "Chess.com"]
[Date "2020.11.10"]
[Round "2"]
[White "BigAl"]
[Black "wnstop"]
[Result "0-1"]
[WhiteElo "2484"]
[BlackElo "2708"]
[TimeControl "180+1"]
[EndTime "10:20:35 PST"]
[Termination "wnstop won on time"]

1. Nf3 {[%clk 0:03:00.9]} 1... Nf6 {[%clk 0:02:57.9]} 2. g3 {[%clk 0:03:00.9]}
2... g6 {[%clk 0:02:58.3]} 3. Bg2 {[%clk 0:03:01.5]} 3... Bg7 {[%clk 0:02:58.9]}
4. O-O {[%clk 0:03:02.3]} 4... O-O {[%clk 0:02:59.3]} 5. d3 {[%clk 0:03:03]}
5... d6 {[%clk 0:02:59.4]} 6. e4 {[%clk 0:03:03]} 6... c5 {[%clk 0:02:58.9]} 7.
e5 {[%clk 0:03:02.6]} 7... Nd5 {[%clk 0:02:30.4]} 8. exd6 {[%clk 0:02:50]} 8...
Qxd6 {[%clk 0:02:29.2]} 9. Na3 {[%clk 0:02:47.9]} 9... Rd8 {[%clk 0:02:22.4]}
10. Re1 {[%clk 0:02:43.4]} 10... Nc6 {[%clk 0:02:20.5]} 11. Nc4 {[%clk
0:02:36.4]} 11... Qc7 {[%clk 0:02:19.3]} 12. a4 {[%clk 0:02:36.5]} 12... b6
{[%clk 0:02:03.1]} 13. c3 {[%clk 0:02:34.6]} 13... Ba6 {[%clk 0:01:51.7]} 14.
Qe2 {[%clk 0:02:34]} 14... h6 {[%clk 0:01:44]} 15. h4 {[%clk 0:02:33.5]} 15...
e6 {[%clk 0:01:33]} 16. h5 {[%clk 0:02:20.5]} 16... g5 {[%clk 0:01:32.3]} 17.
Bxg5 {[%clk 0:02:20.5]} 17... hxg5 {[%clk 0:01:28.1]} 18. Nxg5 {[%clk
0:02:20.7]} 18... Nf6 {[%clk 0:01:19.7]} 19. Qf3 {[%clk 0:02:08.3]} 19... Bb7
{[%clk 0:01:14.3]} 20. Qe2 {[%clk 0:01:50.7]} 20... Qe7 {[%clk 0:00:45.9]} 21.
Rad1 {[%clk 0:01:33.7]} 21... Bh6 {[%clk 0:00:33.9]} 22. Ne4 {[%clk 0:01:26.7]}
22... Nxe4 {[%clk 0:00:33.6]} 23. Bxe4 {[%clk 0:01:26.6]} 23... Qg5 {[%clk
0:00:26]} 24. Qf3 {[%clk 0:01:05.5]} 24... Rac8 {[%clk 0:00:22.6]} 25. a5 {[%clk
0:00:59.9]} 25... f5 {[%clk 0:00:19.7]} 26. axb6 {[%clk 0:00:46.5]} 26... axb6
{[%clk 0:00:16.9]} 27. Nxb6 {[%clk 0:00:45.2]} 27... Rc7 {[%clk 0:00:11]} 28.
Bd5 {[%clk 0:00:24.2]} 28... exd5 {[%clk 0:00:07.9]} 29. Re6 {[%clk 0:00:24.7]}
29... Rg7 {[%clk 0:00:04.9]} 30. Rde1 {[%clk 0:00:24.3]} 30... Kh7 {[%clk
0:00:04.5]} 31. Nxd5 {[%clk 0:00:11.8]} 31... Nd4 {[%clk 0:00:04.4]} 32. cxd4
{[%clk 0:00:07.1]} 32... Bxd5 {[%clk 0:00:04.7]} 33. Qf4 {[%clk 0:00:05.1]}
33... Qxf4 {[%clk 0:00:04.4]} 34. Rg6 {[%clk 0:00:04.2]} 34... Qf3 {[%clk
0:00:03.4]} 35. Kf1 {[%clk 0:00:02.9]} 35... Qxd3+ {[%clk 0:00:02.5]} 36. Kg1
{[%clk 0:00:02.6]} 36... Qf3 {[%clk 0:00:03.4]} 37. Kf1 {[%clk 0:00:02.8]} 37...
Rxg6 {[%clk 0:00:04.1]} 38. hxg6+ {[%clk 0:00:02.3]} 38... Kxg6 {[%clk 0:00:05]}
39. Re7 {[%clk 0:00:02.5]} 39... Bc4+ {[%clk 0:00:04.7]} 40. Kg1 {[%clk
0:00:01.4]} 40... Rxd4 {[%clk 0:00:04.7]} 0-1

[Event "*** Titled Tuesday Blitz"]
[Site "Chess.com"]
[Date "2020.11.10"]
[Round "2"]
[White "Vuk2000"]
[Black "dosto07"]
[Result "1-0"]
[WhiteElo "2657"]
[BlackElo "2321"]
[TimeControl "180+1"]
[EndTime "10:20:35 PST"]
[Termination "Vuk2000 won by resignation"]

1. d4 {[%clk 0:03:00.9]} 1... d5 {[%clk 0:02:59.9]} 2. Bf4 {[%clk 0:02:59.5]}
2... Nf6 {[%clk 0:02:59.1]} 3. e3 {[%clk 0:02:59.9]} 3... c5 {[%clk 0:02:58.7]}
4. c3 {[%clk 0:02:59]} 4... Nc6 {[%clk 0:02:56.5]} 5. Nd2 {[%clk 0:02:58.3]}
5... Qb6 {[%clk 0:02:50.3]} 6. Qb3 {[%clk 0:02:55]} 6... c4 {[%clk 0:02:43.4]}
7. Qc2 {[%clk 0:02:54.6]} 7... Qa5 {[%clk 0:02:29.4]} 8. e4 {[%clk 0:02:50.8]}
8... e6 {[%clk 0:02:27.4]} 9. Ngf3 {[%clk 0:02:48.4]} 9... Be7 {[%clk
0:02:26.4]} 10. e5 {[%clk 0:02:40.3]} 10... Nd7 {[%clk 0:02:24.4]} 11. h4 {[%clk
0:02:39.8]} 11... b5 {[%clk 0:02:21.1]} 12. h5 {[%clk 0:02:29.7]} 12... h6
{[%clk 0:02:19]} 13. b4 {[%clk 0:02:14.9]} 13... Qa3 {[%clk 0:02:02.2]} 14. Nb1
{[%clk 0:01:44.3]} 14... Qa6 {[%clk 0:01:59.5]} 15. a4 {[%clk 0:01:43.5]} 15...
Nb6 {[%clk 0:01:54.6]} 16. Na3 {[%clk 0:01:35.4]} 16... Nxa4 {[%clk 0:01:24]}
17. Be2 {[%clk 0:01:06.8]} 17... Bd7 {[%clk 0:01:22.7]} 18. O-O {[%clk
0:00:51.7]} 18... Nxc3 {[%clk 0:01:15.7]} 19. Qxc3 {[%clk 0:00:47.1]} 19... Bxb4
{[%clk 0:01:14.1]} 20. Nxc4 {[%clk 0:00:22.7]} 20... Bxc3 {[%clk 0:00:57.1]} 21.
Nd6+ {[%clk 0:00:22.2]} 21... Ke7 {[%clk 0:00:54.7]} 22. Rxa6 {[%clk 0:00:22.7]}
22... Nxd4 {[%clk 0:00:49.7]} 23. Nxd4 {[%clk 0:00:22.2]} 23... Bxd4 {[%clk
0:00:49.6]} 24. Bxb5 {[%clk 0:00:22.1]} 24... Rhb8 {[%clk 0:00:42.6]} 25. Bxd7
{[%clk 0:00:20.2]} 25... Kxd7 {[%clk 0:00:42.5]} 26. Rd1 {[%clk 0:00:20.1]}
26... Rb4 {[%clk 0:00:38]} 27. Bd2 {[%clk 0:00:14.1]} 27... Rb2 {[%clk
0:00:32.2]} 28. Be3 {[%clk 0:00:11.6]} 28... Bxe5 {[%clk 0:00:28.9]} 29. Nxf7
{[%clk 0:00:11.8]} 29... Bf6 {[%clk 0:00:25]} 30. Nd6 {[%clk 0:00:10.8]} 30...
Ke7 {[%clk 0:00:17.8]} 31. Rc1 {[%clk 0:00:10.6]} 31... e5 {[%clk 0:00:15]} 32.
Nc8+ {[%clk 0:00:08.6]} 32... Kf7 {[%clk 0:00:11.8]} 33. Rxa7+ {[%clk
0:00:08.7]} 33... Rxa7 {[%clk 0:00:11.1]} 34. Bxa7 {[%clk 0:00:09.6]} 34... d4
{[%clk 0:00:11.5]} 35. Nd6+ {[%clk 0:00:10.3]} 35... Ke6 {[%clk 0:00:11.7]} 36.
Ne4 {[%clk 0:00:10.3]} 36... Be7 {[%clk 0:00:10.9]} 37. Bc5 {[%clk 0:00:09.7]}
37... Bxc5 {[%clk 0:00:10.2]} 38. Nxc5+ {[%clk 0:00:09.4]} 38... Kd5 {[%clk
0:00:11.1]} 39. Nd3 {[%clk 0:00:09.7]} 39... e4 {[%clk 0:00:11.2]} 40. Nxb2
{[%clk 0:00:09.4]} 40... d3 {[%clk 0:00:10.7]} 41. Nxd3 {[%clk 0:00:09.6]} 41...
exd3 {[%clk 0:00:09.9]} 42. Kf1 {[%clk 0:00:10.3]} 42... Kd4 {[%clk 0:00:10.2]}
43. Ke1 {[%clk 0:00:10]} 43... Ke4 {[%clk 0:00:08.9]} 44. Kd2 {[%clk 0:00:10.4]}
44... Kf4 {[%clk 0:00:09]} 45. Re1 {[%clk 0:00:11.3]} 45... Kg5 {[%clk
0:00:08.7]} 46. Rh1 {[%clk 0:00:11.5]} 46... Kg4 {[%clk 0:00:08.5]} 47. Kxd3
{[%clk 0:00:12.4]} 47... Kg5 {[%clk 0:00:08.8]} 48. f3 {[%clk 0:00:12.4]} 48...
g6 {[%clk 0:00:09.1]} 49. hxg6 {[%clk 0:00:12.3]} 49... Kxg6 {[%clk 0:00:08.9]}
50. Ke4 {[%clk 0:00:13.2]} 1-0

[Event "*** Titled Tuesday Blitz"]
[Site "Chess.com"]
[Date "2020.11.10"]
[Round "2"]
[White "RestartingChess"]
[Black "Zhigalko_Sergei"]
[Result "0-1"]
[WhiteElo "2581"]
[BlackElo "2929"]
[TimeControl "180+1"]
[EndTime "10:20:36 PST"]
[Termination "Zhigalko_Sergei won by resignation"]

1. e4 {[%clk 0:03:00.9]} 1... c5 {[%clk 0:03:00.2]} 2. Nf3 {[%clk 0:03:01.4]}
2... Nc6 {[%clk 0:03:00.5]} 3. b4 {[%clk 0:03:01.7]} 3... Nxb4 {[%clk
0:02:50.9]} 4. c3 {[%clk 0:03:02]} 4... Nc6 {[%clk 0:02:51.4]} 5. d4 {[%clk
0:03:02.9]} 5... d5 {[%clk 0:02:52.1]} 6. dxc5 {[%clk 0:03:00.2]} 6... dxe4
{[%clk 0:02:37.6]} 7. Qxd8+ {[%clk 0:02:59.8]} 7... Nxd8 {[%clk 0:02:37]} 8. Ne5
{[%clk 0:02:55.8]} 8... Nc6 {[%clk 0:01:57.7]} 9. Bb5 {[%clk 0:02:42]} 9... Bd7
{[%clk 0:01:42.2]} 10. Nxd7 {[%clk 0:02:40.5]} 10... Kxd7 {[%clk 0:01:43.1]} 11.
Bf4 {[%clk 0:02:40.4]} 11... Nf6 {[%clk 0:01:14.1]} 12. O-O {[%clk 0:02:34.6]}
12... e6 {[%clk 0:01:05.9]} 13. Rd1+ {[%clk 0:02:33.5]} 13... Kc8 {[%clk
0:01:02.3]} 14. Nd2 {[%clk 0:02:18]} 14... Bxc5 {[%clk 0:01:01.2]} 15. Nc4
{[%clk 0:02:09.5]} 15... Nd5 {[%clk 0:00:45.8]} 16. Bd2 {[%clk 0:01:26.9]} 16...
Rd8 {[%clk 0:00:30.2]} 17. Bxc6 {[%clk 0:01:26]} 17... bxc6 {[%clk 0:00:31.1]}
18. Ne5 {[%clk 0:01:26.6]} 18... Kc7 {[%clk 0:00:26.1]} 19. Nxf7 {[%clk
0:01:26.3]} 19... Bxf2+ {[%clk 0:00:19.5]} 20. Kh1 {[%clk 0:01:22]} 20... e3
{[%clk 0:00:18.9]} 21. Nxd8 {[%clk 0:01:21.8]} 21... Rxd8 {[%clk 0:00:18]} 22.
Be1 {[%clk 0:01:21.1]} 22... Rf8 {[%clk 0:00:15.2]} 23. c4 {[%clk 0:01:13.6]}
23... e2 {[%clk 0:00:13]} 24. Rdc1 {[%clk 0:00:45.1]} 24... Ne3 {[%clk
0:00:10.9]} 25. Bb4 {[%clk 0:00:38.9]} 25... Rf5 {[%clk 0:00:08.7]} 26. c5
{[%clk 0:00:24.2]} 26... Nd5 {[%clk 0:00:06.8]} 27. Ba5+ {[%clk 0:00:23.7]}
27... Kc8 {[%clk 0:00:07.4]} 28. g4 {[%clk 0:00:20.2]} 28... Re5 {[%clk
0:00:06.2]} 29. Kg2 {[%clk 0:00:19.9]} 29... Be3 {[%clk 0:00:06.2]} 30. Re1
{[%clk 0:00:20]} 30... Bxc5 {[%clk 0:00:06.2]} 31. Rxe2 {[%clk 0:00:18.1]} 31...
Rxe2+ {[%clk 0:00:06.4]} 32. Kg3 {[%clk 0:00:18.7]} 32... Rc2 {[%clk 0:00:06.6]}
33. Rf1 {[%clk 0:00:17.1]} 33... Rxa2 {[%clk 0:00:06.7]} 34. Be1 {[%clk
0:00:14.4]} 34... Ra3+ {[%clk 0:00:07]} 35. Kh4 {[%clk 0:00:14.1]} 35... Be7+
{[%clk 0:00:06.8]} 36. g5 {[%clk 0:00:14.8]} 36... h6 {[%clk 0:00:07.3]} 37. Rf7
{[%clk 0:00:14.7]} 37... hxg5+ {[%clk 0:00:08.2]} 38. Kh5 {[%clk 0:00:14.9]}
38... Rh3+ {[%clk 0:00:07.5]} 39. Kg6 {[%clk 0:00:15.5]} 39... Rxh2 {[%clk
0:00:07.6]} 40. Kxg7 {[%clk 0:00:13.4]} 40... Re2 {[%clk 0:00:07]} 41. Bg3
{[%clk 0:00:13]} 41... a5 {[%clk 0:00:07.2]} 42. Kg6 {[%clk 0:00:13.3]} 42... a4
{[%clk 0:00:07.2]} 43. Rf3 {[%clk 0:00:14.2]} 43... Kd7 {[%clk 0:00:07]} 44. Rf1
{[%clk 0:00:15.1]} 44... a3 {[%clk 0:00:07.2]} 45. Ra1 {[%clk 0:00:15]} 45... a2
{[%clk 0:00:07.1]} 46. Rd1 {[%clk 0:00:09.1]} 46... Bf6 {[%clk 0:00:06.7]} 47.
Rxd5+ {[%clk 0:00:08.8]} 47... cxd5 {[%clk 0:00:06.7]} 48. Be5 {[%clk
0:00:09.1]} 48... Bxe5 {[%clk 0:00:06.9]} 0-1

[Event "*** Titled Tuesday Blitz"]
[Site "Chess.com"]
[Date "2020.11.10"]
[Round "2"]
[White "Flawless_Fighter"]
[Black "Happy1712Drummer"]
[Result "1-0"]
[WhiteElo "2621"]
[BlackElo "2175"]
[TimeControl "180+1"]
[EndTime "10:20:37 PST"]
[Termination "Flawless_Fighter won by resignation"]

1. e4 {[%clk 0:03:00.9]} 1... c6 {[%clk 0:02:54.2]} 2. d4 {[%clk 0:03:00.5]}
2... d5 {[%clk 0:02:55.1]} 3. e5 {[%clk 0:02:52.5]} 3... Bf5 {[%clk 0:02:52.1]}
4. Bd3 {[%clk 0:02:49.3]} 4... Bxd3 {[%clk 0:02:50.5]} 5. Qxd3 {[%clk
0:02:50.2]} 5... e6 {[%clk 0:02:51.1]} 6. f4 {[%clk 0:02:49.5]} 6... h5 {[%clk
0:02:47.7]} 7. Nf3 {[%clk 0:02:48.8]} 7... Qa5+ {[%clk 0:02:46.3]} 8. c3 {[%clk
0:02:47.7]} 8... Qa6 {[%clk 0:02:46]} 9. Qc2 {[%clk 0:02:35.8]} 9... Nh6 {[%clk
0:02:44.3]} 10. Nbd2 {[%clk 0:02:33.9]} 10... c5 {[%clk 0:02:43.4]} 11. dxc5
{[%clk 0:02:32.5]} 11... Bxc5 {[%clk 0:02:43.3]} 12. Nb3 {[%clk 0:02:32.8]}
12... Bb6 {[%clk 0:02:41.9]} 13. Qe2 {[%clk 0:02:27.9]} 13... Qxe2+ {[%clk
0:02:38.7]} 14. Kxe2 {[%clk 0:02:28]} 14... Nf5 {[%clk 0:02:36.3]} 15. a4 {[%clk
0:02:26]} 15... a6 {[%clk 0:02:33.7]} 16. a5 {[%clk 0:02:25.8]} 16... Ba7 {[%clk
0:02:33.3]} 17. Nfd4 {[%clk 0:02:20.3]} 17... Bxd4 {[%clk 0:02:24.6]} 18. cxd4
{[%clk 0:02:17.1]} 18... Nc6 {[%clk 0:02:23.3]} 19. Kd3 {[%clk 0:02:14.6]} 19...
Rc8 {[%clk 0:02:13.4]} 20. Bd2 {[%clk 0:02:14.2]} 20... f6 {[%clk 0:01:43.9]}
21. Bc3 {[%clk 0:02:06.1]} 21... Kf7 {[%clk 0:01:40]} 22. Rhf1 {[%clk 0:02:00]}
22... Rc7 {[%clk 0:01:30]} 23. Rae1 {[%clk 0:01:57.2]} 23... Re8 {[%clk
0:01:25.4]} 24. g3 {[%clk 0:01:51]} 24... fxe5 {[%clk 0:00:49]} 25. fxe5 {[%clk
0:01:33.2]} 25... Kg6 {[%clk 0:00:48.9]} 26. Rf3 {[%clk 0:01:32]} 26... Nd8
{[%clk 0:00:37.5]} 27. Ref1 {[%clk 0:01:30]} 27... Rc6 {[%clk 0:00:28.2]} 28.
Nc5 {[%clk 0:01:27.2]} 28... Nh6 {[%clk 0:00:18.3]} 29. h3 {[%clk 0:01:17.7]}
29... Nhf7 {[%clk 0:00:17.9]} 30. b4 {[%clk 0:00:55.4]} 30... Ng5 {[%clk
0:00:17]} 31. Rf8 {[%clk 0:00:55.5]} 31... Rxf8 {[%clk 0:00:15.4]} 32. Rxf8
{[%clk 0:00:56.4]} 32... Ngf7 {[%clk 0:00:14.6]} 33. Re8 {[%clk 0:00:54.3]}
33... b6 {[%clk 0:00:14.7]} 34. Nxa6 {[%clk 0:00:44.1]} 34... bxa5 {[%clk
0:00:14.2]} 35. b5 {[%clk 0:00:44.8]} 35... Rb6 {[%clk 0:00:13.6]} 36. Bxa5
{[%clk 0:00:41.9]} 36... Rxb5 {[%clk 0:00:12.9]} 37. Bxd8 {[%clk 0:00:42.1]}
37... Rb3+ {[%clk 0:00:12.6]} 38. Ke2 {[%clk 0:00:40.4]} 38... Rxg3 {[%clk
0:00:13]} 39. Nc5 {[%clk 0:00:34.4]} 39... Rxh3 {[%clk 0:00:12.1]} 40. Rxe6+
{[%clk 0:00:30.8]} 40... Kf5 {[%clk 0:00:11.6]} 41. Bc7 {[%clk 0:00:30.8]} 41...
Ng5 {[%clk 0:00:10]} 42. Re8 {[%clk 0:00:30]} 42... Ne4 {[%clk 0:00:10.4]} 43.
Nxe4 {[%clk 0:00:29.3]} 43... Kxe4 {[%clk 0:00:10.5]} 44. e6 {[%clk 0:00:29.2]}
44... Re3+ {[%clk 0:00:10.4]} 45. Kf2 {[%clk 0:00:28.9]} 45... Rf3+ {[%clk
0:00:09.3]} 46. Kg2 {[%clk 0:00:28.8]} 46... Rf6 {[%clk 0:00:09]} 47. e7 {[%clk
0:00:24.8]} 47... Rg6+ {[%clk 0:00:08.3]} 48. Kh3 {[%clk 0:00:24.5]} 48... Re6
{[%clk 0:00:08.6]} 49. Bd8 {[%clk 0:00:23.9]} 49... Kf5 {[%clk 0:00:07]} 50.
Rf8+ {[%clk 0:00:24.1]} 50... Kg6 {[%clk 0:00:06.7]} 51. e8=Q+ {[%clk
0:00:24.7]} 51... Rxe8 {[%clk 0:00:06.8]} 52. Rxe8 {[%clk 0:00:25.6]} 52... Kf5
{[%clk 0:00:07.1]} 53. Re5+ {[%clk 0:00:26.2]} 53... Kf4 {[%clk 0:00:08]} 54.
Rxd5 {[%clk 0:00:25.5]} 1-0

[Event "*** Titled Tuesday Blitz"]
[Site "Chess.com"]
[Date "2020.11.10"]
[Round "2"]
[White "mbojan"]
[Black "ambaixador"]
[Result "0-1"]
[WhiteElo "2666"]
[BlackElo "2446"]
[TimeControl "180+1"]
[EndTime "10:20:39 PST"]
[Termination "ambaixador won by checkmate"]

1. d3 {[%clk 0:03:00.9]} 1... d5 {[%clk 0:02:59.1]} 2. g3 {[%clk 0:03:00.4]}
2... Nf6 {[%clk 0:02:58.9]} 3. Bg2 {[%clk 0:03:00.8]} 3... g6 {[%clk 0:02:59.1]}
4. Nd2 {[%clk 0:03:00.2]} 4... Bg7 {[%clk 0:02:59.3]} 5. e4 {[%clk 0:03:00.4]}
5... O-O {[%clk 0:02:58.8]} 6. Nh3 {[%clk 0:03:00.2]} 6... c5 {[%clk 0:02:54.9]}
7. O-O {[%clk 0:02:59.8]} 7... Nc6 {[%clk 0:02:54.5]} 8. f4 {[%clk 0:02:58.9]}
8... Bg4 {[%clk 0:02:47.1]} 9. Qe1 {[%clk 0:02:02.9]} 9... Nd4 {[%clk
0:02:46.7]} 10. Rb1 {[%clk 0:02:02.5]} 10... Nxc2 {[%clk 0:02:45.1]} 11. Qf2
{[%clk 0:02:02.5]} 11... Nb4 {[%clk 0:02:38.1]} 12. e5 {[%clk 0:01:56.1]} 12...
Nxd3 {[%clk 0:02:18.2]} 13. Qe3 {[%clk 0:01:53.5]} 13... Nxc1 {[%clk 0:02:17.3]}
14. Rbxc1 {[%clk 0:01:53.9]} 14... Nd7 {[%clk 0:01:56.3]} 15. Nf2 {[%clk
0:01:53.3]} 15... Be6 {[%clk 0:01:53.4]} 16. Nf3 {[%clk 0:01:53.5]} 16... Rc8
{[%clk 0:01:47.2]} 17. Ng5 {[%clk 0:01:50.7]} 17... d4 {[%clk 0:01:37.8]} 18.
Qa3 {[%clk 0:01:31.7]} 18... Qb6 {[%clk 0:01:37]} 19. Nxe6 {[%clk 0:01:28]}
19... fxe6 {[%clk 0:01:37.9]} 20. Ne4 {[%clk 0:01:17.9]} 20... a6 {[%clk
0:01:36.2]} 21. Bh3 {[%clk 0:01:10.1]} 21... Rfd8 {[%clk 0:01:15]} 22. Rf2
{[%clk 0:00:35]} 22... h6 {[%clk 0:00:48.8]} 23. Qb3 {[%clk 0:00:20.9]} 23...
Qxb3 {[%clk 0:00:44]} 24. axb3 {[%clk 0:00:21.8]} 24... Kf7 {[%clk 0:00:42.3]}
25. Rfc2 {[%clk 0:00:21.9]} 25... b6 {[%clk 0:00:41.5]} 26. b4 {[%clk
0:00:22.4]} 26... g5 {[%clk 0:00:34.7]} 27. fxg5 {[%clk 0:00:14.8]} 27... Nxe5
{[%clk 0:00:32]} 28. Rf1+ {[%clk 0:00:11.1]} 28... Kg6 {[%clk 0:00:30.1]} 29.
gxh6 {[%clk 0:00:09.4]} 29... Bxh6 {[%clk 0:00:29.1]} 30. Bxe6 {[%clk
0:00:08.9]} 30... Rc6 {[%clk 0:00:28.4]} 31. Bf5+ {[%clk 0:00:08.9]} 31... Kg7
{[%clk 0:00:27.9]} 32. bxc5 {[%clk 0:00:09.3]} 32... d3 {[%clk 0:00:26.7]} 33.
Rc3 {[%clk 0:00:08.5]} 33... bxc5 {[%clk 0:00:26.4]} 34. Nxc5 {[%clk 0:00:08.6]}
34... Rxc5 {[%clk 0:00:25.9]} 35. Rxc5 {[%clk 0:00:08.3]} 35... Be3+ {[%clk
0:00:26]} 36. Kg2 {[%clk 0:00:08.7]} 36... Bxc5 {[%clk 0:00:26.8]} 37. Rd1
{[%clk 0:00:08.8]} 37... d2 {[%clk 0:00:26.6]} 38. g4 {[%clk 0:00:09.1]} 38...
Nc4 {[%clk 0:00:26.3]} 39. Kf3 {[%clk 0:00:05.8]} 39... Nxb2 {[%clk 0:00:26.1]}
40. Ke2 {[%clk 0:00:06.3]} 40... Nxd1 {[%clk 0:00:25.7]} 41. Kxd1 {[%clk
0:00:07.2]} 41... a5 {[%clk 0:00:25.9]} 42. h4 {[%clk 0:00:08]} 42... a4 {[%clk
0:00:26.3]} 43. g5 {[%clk 0:00:08.6]} 43... a3 {[%clk 0:00:26.6]} 44. Bb1 {[%clk
0:00:08]} 44... Rb8 {[%clk 0:00:24.6]} 45. Ba2 {[%clk 0:00:08.4]} 45... Rb2
{[%clk 0:00:24.2]} 46. Be6 {[%clk 0:00:08.7]} 46... a2 {[%clk 0:00:24.3]} 47.
Bxa2 {[%clk 0:00:09.2]} 47... Rxa2 {[%clk 0:00:25.2]} 48. h5 {[%clk 0:00:10.1]}
48... Be3 {[%clk 0:00:24.9]} 49. h6+ {[%clk 0:00:10.8]} 49... Kh7 {[%clk
0:00:24.9]} 50. g6+ {[%clk 0:00:11.3]} 50... Kxg6 {[%clk 0:00:25.1]} 51. h7
{[%clk 0:00:12.2]} 51... Kxh7 {[%clk 0:00:25.6]} 52. Ke2 {[%clk 0:00:12.6]}
52... Ra1 {[%clk 0:00:25.9]} 53. Kd3 {[%clk 0:00:13.2]} 53... d1=Q+ {[%clk
0:00:25.5]} 54. Ke4 {[%clk 0:00:14.1]} 54... Qd4+ {[%clk 0:00:25.3]} 55. Kf5
{[%clk 0:00:15]} 55... Rf1+ {[%clk 0:00:24.6]} 56. Ke6 {[%clk 0:00:15.9]} 56...
Qd6# {[%clk 0:00:24.6]} 0-1